fUSD/lending_fUSD_20250614
["ID","MTS","AMOUNT","RATE_DAILY","PERIOD"]
[365754264,1749881247970,5800.0,0.00013529,2]
[365754266,1749881292234,200.0,0.00015315,2]
[365754267,1749881343973,-800.0,0.00021,120]
[365754268,1749881344021,-155.24122084,0.0002205,120]
[365754269,1749881344066,-4761.8650102,0.000229,120]
[365754270,1749881344112,-434.19214208,0.00023,120]
[365754271,1749881344173,-155.01206104,0.00023153,120]
[365754272,1749881344221,-2575.98990444,0.000245,120]
[365754273,1749881344267,-2235.85333347,0.000246,120]
[365754274,1749881344311,-3024.0,0.0002465,120]
[365754275,1749881344356,-1033.65732384,0.00024658,120]
[365754276,1749881347462,158.65684413,0.00024658,120]
[365754280,1749881349778,166.57627514,0.00024658,120]
[365754306,1749881406991,165.41926975,0.00024658,120]
[365754307,1749881408843,177.89728255,0.00024658,120]
[365754311,1749881431517,-200.0,0.00016142,3]
[365754312,1749881431528,-618.1,0.00016705,2]
[365754313,1749881431537,-121.72057194,0.00016736,2]
[365754314,1749881431803,-28.27942806,0.00016736,2]
[365754315,1749881431813,-476.38,0.00016772,2]
[365754316,1749881431824,-200.0,0.0001697,4]
[365754317,1749881431835,-468.3,0.00017019,2]
[365754318,1749881431845,-166.84,0.00017162,2]
[365754319,1749881431855,-207.4,0.0001719,2]
[365754320,1749881431866,-175.0,0.00017199,2]
[365754321,1749881431876,-1200.0,0.00017199,2]
[365754322,1749881431886,-26427.15569086,0.000172,2]
[365754323,1749881431898,-750.0487549,0.000172,2]
[365754324,1749881431910,-1045.65856254,0.000172,2]
[365754338,1749881432078,-1000.0,0.00016574,2]
[365754339,1749881432088,-1700.75468525,0.000172,2]
[365754340,1749881432099,-312.33167225,0.000172,2]
[365754841,1749881437447,-2016.01224278,0.000172,2]
[365754848,1749881437505,-6428.68937773,0.000172,2]
[365754859,1749881437780,-264.9824606,0.000172,2]
[365754860,1749881437792,-821.73330075,0.000172,2]
[365754861,1749881437803,-280.407,0.000172,2]
[365754862,1749881437816,-666.24,0.000172,2]
[365754863,1749881437828,-329.807,0.000172,2]
[365755082,1749881440072,-5541.0037653,0.000172,2]
[365755665,1749881514595,500.49376676,0.00024658,120]
[365755666,1749881634794,154.12,0.00013699,2]
[365755671,1749881696540,250.24688338,0.00024658,120]
[365755676,1749882011791,200.0,0.00015797,2]
[365755679,1749882192684,460.81,0.00014616,2]
[365755680,1749882232820,5800.0,0.00013537,2]
[365755684,1749882371583,200.0,0.00015664,2]
[365755794,1749882631700,-1000.0,0.00016476,2]
[365755796,1749882631711,-200.0,0.00016488,7]
[365755797,1749882631721,-200.0,0.00016551,3]
[365755798,1749882631731,-826.21,0.00016601,2]
[365755799,1749882631741,-294.04,0.00016626,2]
[365755800,1749882631750,-150.0,0.00016648,2]
[365755801,1749882631760,-165.35,0.00016683,2]
[365755802,1749882631770,-300.0,0.00016699,2]
[365755803,1749882631779,-1200.0,0.00016699,2]
[365755804,1749882631790,-17402.4260916,0.000167,5]
[365755805,1749882631989,-11052.53381329,0.000167,5]
[365755806,1749882631998,-1594.18,0.000168,2]
[365755807,1749882632008,-461.43,0.000168,2]
[365755808,1749882632017,-461.43,0.000168,2]
[365755809,1749882632027,-460.81,0.0001688,2]
[365755810,1749882632036,-8634.67454473,0.00017,2]
[365755811,1749882632045,-167.35,0.00017071,2]
[365755813,1749882632055,-956.88,0.000171,2]
[365755815,1749882632064,-151.0,0.0001719,2]
[365755817,1749882632073,-207.4,0.0001719,2]
[365755819,1749882632082,-2576.79315165,0.0001719,2]
[365755821,1749882632091,-22464.61446448,0.000172,2]
[365756392,1749882637916,-288.59998769,0.000172,2]
[365756605,1749882639877,-447.06094897,0.000172,2]
[365756613,1749882639948,-5385.09240703,0.000172,2]
[365756616,1749882639961,-10813.17971769,0.000172,2]
[365756617,1749882639971,-461.43,0.000172,2]
[365756619,1749882639981,-461.43,0.000172,2]
[365756621,1749882639990,-806.92,0.000172,2]
[365756623,1749882639999,-797.2,0.000172,2]
[365756626,1749882640009,-8366.36841457,0.000172,2]
[365756628,1749882640020,-345.66964061,0.000172,2]
[365756633,1749882640125,-4372.89601342,0.000172,2]
[365756634,1749882640135,-152.03,0.00017239,2]
[365756635,1749882640144,-1164.17,0.00017239,2]
[365756636,1749882640152,-1164.17,0.00017239,2]
[365756638,1749882640162,-1178.59,0.00017239,2]
[365756640,1749882640171,-1592.86,0.00017257,2]
[365756642,1749882640180,-500.0,0.00017288,2]
[365756644,1749882640190,-600.0,0.00017299,4]
[365756646,1749882640199,-500.0,0.00017299,2]
[365756648,1749882640209,-586.21307708,0.00017299,2]
[365756650,1749882640218,-245.04415365,0.00017299,2]
[365756652,1749882640228,-423.84902525,0.00017299,2]
[365756654,1749882640237,-461.5,0.000173,2]
[365756656,1749882640247,-461.43,0.000173,2]
[365756658,1749882640257,-461.43,0.000173,2]
[365756660,1749882640269,-461.43,0.000173,2]
[365756662,1749882640279,-797.31,0.000173,2]
[365756664,1749882640288,-466.96,0.000173,2]
[365756666,1749882640298,-980.73,0.000173,2]
[365756668,1749882640308,-797.2,0.000173,2]
[365756670,1749882640317,-797.2,0.000173,2]
[365756672,1749882640327,-797.2,0.000173,2]
[365756674,1749882640336,-150.71,0.000173,2]
[365756676,1749882640347,-150.0,0.00017428,2]
[365756678,1749882640357,-150.0,0.00017429,2]
[365756680,1749882640366,-150.0,0.00017432,2]
[365756682,1749882640376,-200.0,0.00017437,4]
[365756684,1749882640386,-150.0,0.00017438,2]
[365756686,1749882640395,-150.0,0.00017438,2]
[365756688,1749882640404,-150.0,0.00017438,2]
[365756690,1749882640413,-150.0,0.00017439,2]
[365756692,1749882640422,-150.0,0.00017439,2]
[365756694,1749882640431,-150.0,0.0001744,2]
[365756696,1749882640440,-150.0,0.00017442,2]
[365756698,1749882640450,-73.30472103,0.00017443,2]
[365756920,1749882642780,-76.69527897,0.00017443,2]
[365756922,1749882642790,-150.0,0.00017446,2]
[365756924,1749882642799,-150.0,0.00017447,2]
[365756926,1749882642808,-150.0,0.00017453,2]
[365756928,1749882642816,-150.0,0.00017462,2]
[365756930,1749882642826,-150.0,0.00017467,2]
[365756932,1749882642835,-150.0,0.00017471,2]
[365756934,1749882642844,-150.0,0.00017473,2]
[365756936,1749882642853,-150.0,0.00017473,2]
[365756973,1749882643205,-150.0,0.00017477,2]
[365756975,1749882643215,-150.0,0.00017484,2]
[365756977,1749882643224,-150.0,0.00017486,2]
[365756979,1749882643234,-150.0,0.00017493,2]
[365756981,1749882643243,-150.0,0.00017493,2]
[365756983,1749882643253,-150.0,0.00017493,2]
[365756985,1749882643262,-70.42339992,0.00017493,2]
[365757197,1749882645720,-79.57660008,0.00017493,2]
[365757198,1749882645730,-150.0,0.00017499,2]
[365757199,1749882645740,-150.0,0.00017499,2]
[365757200,1749882645750,-156.89644815,0.000175,2]
[365757201,1749882645841,-1572.0,0.000175,2]
[365757202,1749882645906,-271.10355185,0.000175,2]
[365757203,1749882645916,-63.9374496,0.00017501,2]
[365757204,1749882645971,-936.0625504,0.00017501,2]
[365757205,1749882645981,-63.9374496,0.00017504,2]
[365757206,1749882645993,-86.0625504,0.00017504,2]
[365757207,1749882646002,-150.0,0.00017507,2]
[365757208,1749882646012,-150.0,0.00017511,2]
[365757209,1749882646021,-150.0,0.00017513,2]
[365757210,1749882646031,-150.0,0.00017516,2]
[365757211,1749882646040,-150.0,0.00017517,2]
[365757212,1749882646049,-150.0,0.00017521,2]
[365757213,1749882646059,-150.0,0.00017521,2]
[365757214,1749882646068,-150.0,0.00017522,2]
[365757215,1749882646077,-150.0,0.00017522,2]
[365757216,1749882646086,-150.0,0.00017525,2]
[365757217,1749882646095,-150.0,0.00017527,2]
[365757218,1749882646105,-150.0,0.00017528,2]
[365757219,1749882646114,-150.0,0.0001753,2]
[365757220,1749882646124,-150.0,0.00017531,2]
[365757221,1749882646133,-150.0,0.00017534,2]
[365757222,1749882646142,-150.0,0.00017535,2]
[365757223,1749882646153,-1000.0,0.00017538,2]
[365757224,1749882646163,-150.0,0.00017543,2]
[365757225,1749882646173,-455.08807614,0.00017544,2]
[365757226,1749882646186,-150.0,0.00017547,2]
[365757227,1749882646195,-150.0,0.00017557,2]
[365757228,1749882646204,-200.0,0.00017558,2]
[365757229,1749882646214,-150.0,0.00017562,2]
[365757230,1749882646223,-150.0,0.00017563,2]
[365757231,1749882646232,-150.0,0.00017563,2]
[365757232,1749882646241,-150.0,0.00017564,2]
[365757233,1749882646250,-150.0,0.00017566,2]
[365757234,1749882646259,-150.0,0.00017567,2]
[365757235,1749882646271,-150.0,0.00017567,2]
[365757236,1749882646280,-150.0,0.00017569,2]
[365757237,1749882646289,-150.0,0.00017572,2]
[365757238,1749882646304,-353.6454752,0.00017578,2]
[365757239,1749882646317,-150.0,0.0001758,2]
[365757240,1749882646326,-150.0,0.0001758,2]
[365757241,1749882646335,-150.0,0.00017583,2]
[365757242,1749882646346,-150.0,0.00017585,2]
[365757243,1749882646355,-150.0,0.00017589,2]
[365757244,1749882646368,-8634.67454457,0.0001759,2]
[365757245,1749882646378,-150.0,0.0001759,2]
[365757246,1749882646387,-150.0,0.00017592,2]
[365757247,1749882646396,-150.0,0.00017593,2]
[365757248,1749882646405,-150.0,0.00017594,2]
[365757249,1749882646414,-7376.68496869,0.00017598,2]
[365757250,1749882646423,-480.535176,0.00017598,2]
[365757251,1749882646432,-151.0,0.00017598,2]
[365757252,1749882646442,-480.535176,0.00017598,2]
[365757253,1749882646451,-1500.0,0.00017598,2]
[365757254,1749882646460,-5007.96691461,0.000176,2]
[365757255,1749882646469,-206.36239284,0.000176,2]
[365757256,1749882646478,-150.0,0.00017602,2]
[365757257,1749882646487,-150.0,0.0001761,2]
[365757258,1749882646497,-150.0,0.0001761,2]
[365757259,1749882646506,-150.0,0.0001761,2]
[365757260,1749882646516,-150.0,0.0001761,2]
[365757261,1749882646525,-150.0,0.0001761,2]
[365757262,1749882646534,-150.0,0.0001761,2]
[365757263,1749882646544,-202.25101604,0.0001761,2]
[365757264,1749882646553,-150.0,0.0001761,2]
[365757265,1749882646563,-500.0,0.0001761,2]
[365757266,1749882646572,-150.0,0.0001761,2]
[365757267,1749882646582,-150.0,0.00017612,2]
[365757270,1749882646591,-1248.603,0.00017618,2]
[365757271,1749882646601,-150.0,0.00017618,2]
[365757274,1749882646611,-150.0,0.00017618,2]
[365757275,1749882646621,-150.0,0.00017622,2]
[365757277,1749882646631,-150.0,0.00017623,2]
[365757279,1749882646640,-150.0,0.00017625,2]
[365757281,1749882646649,-150.0,0.0001763,2]
[365757283,1749882646658,-150.0,0.00017632,2]
[365757285,1749882646668,-150.0,0.00017633,2]
[365757287,1749882646677,-150.0,0.00017633,2]
[365757289,1749882646686,-150.0,0.00017636,2]
[365757291,1749882646695,-150.0,0.00017637,2]
[365757293,1749882646705,-150.0,0.00017637,2]
[365757295,1749882646715,-150.0,0.00017637,2]
[365757297,1749882646725,-500.0,0.00017637,2]
[365757299,1749882646735,-150.0,0.00017638,2]
[365757301,1749882646746,-150.0,0.00017638,2]
[365757302,1749882646756,-150.0,0.00017638,2]
[365757303,1749882646766,-150.0,0.00017641,2]
[365757304,1749882646776,-150.0,0.00017641,2]
[365757305,1749882646786,-656.0,0.00017642,2]
[365757306,1749882646796,-523.219,0.00017642,2]
[365757307,1749882646806,-150.0,0.00017643,2]
[365757308,1749882646816,-150.0,0.00017655,2]
[365757309,1749882646825,-150.0,0.00017658,2]
[365757310,1749882646835,-150.0,0.0001766,2]
[365757311,1749882646844,-200.0,0.00017665,2]
[365757312,1749882646854,-200.0,0.00017665,2]
[365757313,1749882646863,-200.0,0.00017665,2]
[365757314,1749882646873,-192.0,0.00017665,2]
[365757315,1749882646883,-150.0,0.00017665,2]
[365757316,1749882646893,-150.0,0.00017671,2]
[365757317,1749882646903,-150.0,0.00017671,2]
[365757318,1749882646912,-150.0,0.00017674,2]
[365757319,1749882646921,-150.0,0.00017676,2]
[365757320,1749882646931,-150.0,0.00017683,2]
[365757321,1749882646941,-150.0,0.00017689,2]
[365757322,1749882646950,-150.0,0.00017689,2]
[365757323,1749882646960,-150.0,0.00017691,2]
[365757324,1749882646970,-150.0,0.00017692,2]
[365757325,1749882646979,-150.0,0.00017692,2]
[365757326,1749882646989,-150.0,0.00017695,2]
[365757327,1749882646999,-150.0,0.00017696,2]
[365757328,1749882647009,-150.0,0.00017696,2]
[365757329,1749882647018,-637.0,0.00017697,2]
[365757330,1749882647028,-802.0,0.00017697,2]
[365757331,1749882647038,-2002.0,0.00017697,2]
[365757333,1749882647047,-1276.0,0.00017697,2]
[365757335,1749882647056,-558.0,0.00017697,2]
[365757337,1749882647066,-927.0,0.00017697,2]
[365757338,1749882647074,-590.0,0.00017697,2]
[365757339,1749882647083,-1690.017,0.00017697,2]
[365757340,1749882647092,-1160.0,0.00017697,2]
[365757341,1749882647102,-4192.894,0.00017697,2]
[365757342,1749882647111,-7066.0,0.00017697,2]
[365757343,1749882647119,-3332.0,0.00017697,2]
[365757344,1749882647128,-203.665,0.00017697,2]
[365757345,1749882647138,-945.0,0.00017697,2]
[365757346,1749882647147,-151.0,0.00017698,2]
[365757347,1749882647156,-286.360244,0.00017698,2]
[365757348,1749882647165,-151.0,0.00017698,2]
[365757349,1749882647173,-151.0,0.00017698,2]
[365757350,1749882647182,-151.0,0.00017698,2]
[365757351,1749882647196,-151.0,0.00017698,2]
[365757352,1749882647210,-151.0,0.00017698,2]
[365757353,1749882647219,-151.0,0.00017698,2]
[365757354,1749882647228,-151.0,0.00017698,2]
[365757355,1749882647237,-151.0,0.00017698,2]
[365757356,1749882647246,-151.0,0.00017698,2]
[365757357,1749882647255,-151.0,0.00017698,2]
[365757358,1749882647265,-151.0,0.00017698,2]
[365757359,1749882647276,-151.0,0.00017698,2]
[365757360,1749882647286,-151.0,0.00017698,2]
[365757361,1749882647295,-151.0,0.00017698,2]
[365757362,1749882647305,-151.0,0.00017698,2]
[365757363,1749882647314,-151.0,0.00017698,2]
[365757364,1749882647323,-151.0,0.00017698,2]
[365757365,1749882647332,-151.0,0.00017698,2]
[365757366,1749882647342,-151.0,0.00017698,2]
[365757367,1749882647352,-151.0,0.00017698,2]
[365757368,1749882647361,-167.628793,0.00017698,2]
[365757369,1749882647371,-167.628793,0.00017698,2]
[365757370,1749882647381,-151.0,0.00017698,2]
[365757371,1749882647390,-181.162953,0.00017698,2]
[365757372,1749882647399,-181.162953,0.00017698,2]
[365757373,1749882647409,-151.0,0.00017698,2]
[365757374,1749882647420,-151.0,0.00017698,2]
[365757375,1749882647430,-151.0,0.00017698,2]
[365757376,1749882647439,-151.0,0.00017698,2]
[365757377,1749882647448,-151.0,0.00017698,2]
[365757378,1749882647457,-151.0,0.00017698,2]
[365757379,1749882647466,-332.169171,0.00017698,2]
[365757380,1749882647475,-332.169171,0.00017698,2]
[365757381,1749882647484,-151.0,0.00017698,2]
[365757382,1749882647494,-151.0,0.00017698,2]
[365757383,1749882647503,-151.0,0.00017698,2]
[365757384,1749882647513,-151.0,0.00017698,2]
[365757385,1749882647522,-151.0,0.00017698,2]
[365757386,1749882647531,-151.0,0.00017698,2]
[365757387,1749882647540,-151.0,0.00017698,2]
[365757388,1749882647549,-151.0,0.00017698,2]
[365757389,1749882647558,-686.625521,0.00017698,2]
[365757390,1749882647567,-686.625521,0.00017698,2]
[365757391,1749882647576,-686.625521,0.00017698,2]
[365757392,1749882647586,-151.0,0.00017698,2]
[365757393,1749882647595,-686.625521,0.00017698,2]
[365757394,1749882647604,-151.0,0.00017698,2]
[365757395,1749882647613,-438.7285,0.00017698,2]
[365757396,1749882647623,-438.7285,0.00017698,2]
[365757397,1749882647633,-367.417804,0.00017698,2]
[365757398,1749882647642,-367.417804,0.00017698,2]
[365757399,1749882647652,-367.417804,0.00017698,2]
[365757400,1749882647662,-367.417804,0.00017698,2]
[365757401,1749882647672,-150.0,0.00017698,2]
[365757402,1749882647681,-150.0,0.00017698,2]
[365757403,1749882647692,-150.0,0.00017698,2]
[365757404,1749882647701,-150.37584159,0.00017698,2]
[365757405,1749882647710,-150.0,0.00017698,2]
[365757406,1749882647720,-150.0,0.00017698,2]
[365757407,1749882647729,-151.0,0.00017698,2]
[365757408,1749882647739,-151.0,0.00017698,2]
[365757409,1749882647748,-173.177476,0.00017698,2]
[365757410,1749882647758,-173.177476,0.00017698,2]
[365757411,1749882647767,-173.177476,0.00017698,2]
[365757412,1749882647776,-151.0,0.00017698,2]
[365757413,1749882647785,-173.177476,0.00017698,2]
[365757414,1749882647795,-151.0,0.00017698,2]
[365757415,1749882647804,-151.0,0.00017698,2]
[365757416,1749882647814,-151.0,0.00017698,2]
[365757417,1749882647823,-151.0,0.00017698,2]
[365757418,1749882647832,-151.0,0.00017698,2]
[365757419,1749882647842,-151.0,0.00017698,2]
[365757420,1749882647851,-187.715369,0.00017698,2]
[365757421,1749882647861,-187.715369,0.00017698,2]
[365757422,1749882647870,-151.0,0.00017698,2]
[365757423,1749882647879,-151.0,0.00017698,2]
[365757424,1749882647889,-151.0,0.00017698,2]
[365757425,1749882647898,-153.821483,0.00017698,2]
[365757426,1749882647908,-153.821483,0.00017698,2]
[365757427,1749882647918,-151.0,0.00017698,2]
[365757428,1749882647927,-151.0,0.00017698,2]
[365757429,1749882647936,-521.608665,0.00017698,2]
[365757430,1749882647945,-521.608665,0.00017698,2]
[365757431,1749882647954,-521.608665,0.00017698,2]
[365757432,1749882647963,-521.608665,0.00017698,2]
[365757433,1749882647973,-151.0,0.00017698,2]
[365757434,1749882647982,-151.0,0.00017698,2]
[365757435,1749882647991,-151.0,0.00017698,2]
[365757436,1749882648000,-151.0,0.00017698,2]
[365757437,1749882648009,-151.321178,0.00017698,2]
[365757438,1749882648019,-228.125416,0.00017698,2]
[365757439,1749882648028,-228.125416,0.00017698,2]
[365757440,1749882648037,-275.585815,0.00017698,2]
[365757441,1749882648047,-151.144193,0.00017698,2]
[365757442,1749882648056,-331.168083,0.00017698,2]
[365757443,1749882648065,-331.168083,0.00017698,2]
[365757444,1749882648075,-151.0,0.00017698,2]
[365757445,1749882648084,-151.0,0.00017698,2]
[365757446,1749882648093,-4845.337466,0.00017698,2]
[365757447,1749882648103,-4845.337466,0.00017698,2]
[365757448,1749882648112,-151.0,0.00017698,2]
[365757449,1749882648121,-151.0,0.00017698,2]
[365757450,1749882648130,-151.0,0.00017698,2]
[365757451,1749882648142,-151.611904,0.00017698,2]
[365757452,1749882648153,-434.27761,0.00017698,2]
[365757453,1749882648163,-434.27761,0.00017698,2]
[365757454,1749882648172,-151.0,0.00017698,2]
[365757455,1749882648182,-151.0,0.00017698,2]
[365757456,1749882648192,-151.0,0.00017698,2]
[365757457,1749882648201,-343.282722,0.00017698,2]
[365757458,1749882648211,-343.282722,0.00017698,2]
[365757459,1749882648220,-480.535176,0.00017698,2]
[365757460,1749882648229,-480.535176,0.00017698,2]
[365757461,1749882648238,-151.0,0.00017698,2]
[365757462,1749882648247,-151.0,0.00017698,2]
[365757463,1749882648256,-480.535176,0.00017698,2]
[365757464,1749882648268,-480.535176,0.00017698,2]
[365757465,1749882648278,-151.0,0.00017699,2]
[365757466,1749882648287,-599.525387,0.00017699,2]
[365757467,1749882648296,-599.525387,0.00017699,2]
[365757468,1749882648305,-151.0,0.00017699,2]
[365757469,1749882648316,-300.0,0.00017699,2]
[365757470,1749882648325,-300.0,0.00017699,2]
[365757471,1749882648334,-476.883325,0.00017699,2]
[365757472,1749882648345,-476.883325,0.00017699,2]
[365757473,1749882648355,-300.0,0.00017699,2]
[365757474,1749882648364,-151.0,0.000177,2]
[365757475,1749882648374,-152.26704201,0.000177,2]
[365757476,1749882648383,-151.6402166,0.000177,2]
[365757477,1749882648392,-151.0,0.000177,2]
[365757478,1749882648401,-152.332455,0.000177,2]
[365757479,1749882648411,-181.531766,0.000177,2]
[365757480,1749882648420,-181.531766,0.000177,2]
[365757481,1749882648429,-151.0,0.000177,2]
[365757482,1749882648439,-151.0,0.000177,2]
[365757483,1749882648448,-151.0,0.000177,2]
[365757484,1749882648457,-1000.0,0.000177,2]
[365757485,1749882648466,-151.0,0.000177,2]
[365757486,1749882648475,-743.21562628,0.000177,2]
[365757487,1749882648484,-215.53742,0.000177,2]
[365757488,1749882648494,-215.53742,0.000177,2]
[365757489,1749882648503,-151.0,0.000177,2]
[365757490,1749882648512,-151.0,0.000177,2]
[365757491,1749882648537,-151.0,0.000177,2]
[365757492,1749882648547,-229.664381,0.000177,2]
[365757493,1749882648556,-151.0,0.000177,2]
[365757494,1749882648565,-313.735626,0.000177,2]
[365757495,1749882648574,-313.735626,0.000177,2]
[365757496,1749882648583,-151.0,0.000177,2]
[365757497,1749882648593,-151.0,0.000177,2]
[365757498,1749882648602,-151.0,0.000177,2]
[365757499,1749882648611,-151.0,0.000177,2]
[365757500,1749882648621,-151.0,0.000177,2]
[365757501,1749882648630,-151.0,0.000177,2]
[365757502,1749882648639,-151.0,0.000177,2]
[365757503,1749882648649,-151.0,0.000177,2]
[365757504,1749882648658,-151.0,0.000177,2]
[365757505,1749882648668,-151.0,0.000177,2]
[365757506,1749882648678,-151.0,0.000177,2]
[365757507,1749882648688,-151.0,0.000177,2]
[365757508,1749882648697,-884.982615,0.000177,2]
[365757509,1749882648706,-884.982615,0.000177,2]
[365757510,1749882648715,-151.0,0.000177,2]
[365757511,1749882648725,-151.0,0.000177,2]
[365757512,1749882648735,-151.0,0.000177,2]
[365757513,1749882648744,-151.0,0.000177,2]
[365757514,1749882648754,-151.0,0.000177,2]
[365757515,1749882648763,-151.0,0.000177,2]
[365757516,1749882648773,-151.0,0.000177,2]
[365757517,1749882648783,-167.628793,0.000177,2]
[365757518,1749882648793,-167.628793,0.000177,2]
[365757519,1749882648802,-151.0,0.000177,2]
[365757520,1749882648811,-181.162953,0.000177,2]
[365757521,1749882648821,-181.162953,0.000177,2]
[365757522,1749882648831,-181.162953,0.000177,2]
[365757523,1749882648840,-181.162953,0.000177,2]
[365757524,1749882648849,-151.0,0.000177,2]
[365757525,1749882648858,-151.453044,0.000177,2]
[365757526,1749882648868,-151.0,0.000177,2]
[365757527,1749882648877,-118.77397639,0.000177,2]
[365757531,1749882662394,154.12,0.00013699,2]
[365757536,1749882852975,2061.3988779,0.00024657,120]
[365757539,1749882856210,2659.51,0.00024658,120]
[365757540,1749882861490,2141.4,0.00024658,120]
[365757560,1749882886488,1389.16,0.00024658,120]
[365757561,1749882909491,2083.62,0.00024658,120]
[365757586,1749882927870,3000.0,0.00024658,120]
[365757587,1749882939106,1389.08,0.00024658,120]
[365757588,1749882964478,2778.16,0.00024658,120]
[365757589,1749882995149,2083.6,0.00024658,120]
[365757590,1749883018497,2083.81,0.00024658,120]
[365757591,1749883030707,543.799149,0.0002465,120]
[365757592,1749883037026,2164.54,0.00024658,120]
[365757593,1749883055783,490.0,0.00024658,120]
[365757594,1749883070814,1470.0,0.00024658,120]
[365757595,1749883099096,2460.0,0.00024658,120]
[365757598,1749883133928,2467.77,0.00024658,120]
[365757602,1749883154976,490.0,0.00024658,120]
[365757604,1749883171865,490.0,0.00024658,120]
[365757606,1749883452302,200.0,0.00015324,2]
[365757610,1749883535013,2321.74,0.00024657,120]
[365757616,1749883593065,454.02,0.00014482,2]
[365757638,1749883645772,157.37,0.00024658,120]
[365757645,1749883682082,-175.21,0.00016094,2]
[365757646,1749883682107,-341.54939691,0.00016175,2]
[365757647,1749883682135,-200.0,0.00016275,3]
[365757648,1749883682161,-15813.49,0.00016357,2]
[365757649,1749883682186,-294.82,0.00016364,2]
[365757650,1749883682211,-2751.0,0.00016443,2]
[365757651,1749883682237,-707.11,0.00016482,2]
[365757652,1749883682262,-1000.0,0.00016549,2]
[365757653,1749883682291,-563.49895083,0.00016648,2]
[365757654,1749883682315,-563.49895084,0.00016648,2]
[365757655,1749883682339,-150.0,0.00016653,2]
[365757656,1749883682366,-526.77,0.00016691,2]
[365757657,1749883682391,-454.02,0.00016745,2]
[365757658,1749883682416,-1200.0,0.00016747,2]
[365757659,1749883682857,-300.0,0.00016747,2]
[365757660,1749883682884,-1611.2,0.00016748,2]
[365757661,1749883682909,-21033.84,0.00016748,2]
[365757662,1749883682935,-1957.856,0.0001695,2]
[365757663,1749883682960,-207.4,0.0001695,2]
[365757664,1749883682993,-8100.35361013,0.00017,2]
[365757668,1749883697265,154.12,0.00013699,2]
[365757679,1749883831875,-200.0,0.00016225,2]
[365757680,1749883831885,-1200.0,0.00016992,2]
[365757681,1749883831894,-278.28489019,0.00016993,2]
[365757682,1749883831905,-846.42951688,0.00016993,2]
[365757683,1749883831917,-538.27,0.00016993,2]
[365757684,1749883832000,-8616.93813313,0.00016993,2]
[365757685,1749883832009,-6262.2336173,0.00016993,2]
[365757686,1749883832019,-2030.296672,0.00017005,2]
[365757687,1749883832028,-167.62,0.00017046,2]
[365757688,1749883832038,-2242.4475163,0.0001706,2]
[365757689,1749883832047,-200.0,0.00017198,3]
[365757690,1749883832058,-731.080093,0.00017346,2]
[365757691,1749883832069,-150.0,0.00017438,2]
[365757692,1749883832079,-500.0,0.00017558,2]
[365757693,1749883832089,-200.0,0.00017558,2]